bitfinex/quotes_BTCUSD_20241120
["timestamp","ask_amount","ask_price","bid_price","bid_amount"]
[1732143049768,0.40373091,94113.0,94112.0,5e-05]
[1732143051407,0.3909538,94113.0,94112.0,5e-05]
[1732143051612,0.40373091,94113.0,94112.0,5e-05]
[1732143052259,0.39095663,94113.0,94112.0,5e-05]
[1732143053284,0.37817952,94113.0,94112.0,5e-05]
[1732143053490,0.39095663,94113.0,94112.0,5e-05]
[1732143053706,0.37817952,94113.0,94112.0,5e-05]
[1732143053913,0.39095663,94113.0,94112.0,5e-05]
[1732143054320,0.37817952,94113.0,94112.0,5e-05]
[1732143054447,0.37817952,94113.0,94099.0,0.10627]
[1732143054448,0.01,94095.0,94092.0,0.116955]
[1732143054660,0.12711512,94095.0,94092.0,0.116955]
[1732143054862,0.12711512,94095.0,94094.0,0.2008819]
[1732143057536,0.12711512,94095.0,94094.0,0.11972266]
[1732143059731,0.12711512,94095.0,94094.0,0.12057846]
[1732143062462,0.12711512,94095.0,94094.0,0.10995146]
[1732143064942,0.01,94089.0,94088.0,0.18744224]
[1732143065146,0.11711512,94089.0,94088.0,0.18744224]
[1732143065369,0.12711512,94089.0,94088.0,0.18744224]
[1732143066609,0.12711512,94089.0,94088.0,0.106283]
[1732143066842,0.12711512,94089.0,94088.0,0.18744224]
[1732143067616,0.11711512,94089.0,94088.0,0.18744224]
[1732143067889,0.12711512,94089.0,94088.0,0.18744224]
[1732143069099,0.12711512,94089.0,94088.0,0.26424224]
[1732143070000,0.12211512,94089.0,94088.0,0.26424224]
[1732143071170,0.12211512,94089.0,94088.0,0.26509804]
[1732143072429,0.12211512,94089.0,94088.0,0.26781088]
[1732143073304,0.12211512,94089.0,94088.0,0.10985164]
[1732143080500,0.11211512,94089.0,94088.0,0.10985164]
[1732143080708,0.12211512,94089.0,94088.0,0.10985164]
[1732143084717,0.11711512,94089.0,94088.0,0.18895164]
[1732143085272,0.01,94089.0,94088.0,0.18895164]
[1732143087322,0.01,94092.0,94091.0,0.10628]
[1732143087704,0.01,94092.0,94091.0,0.10899336]
[1732143087913,0.01,94092.0,94091.0,0.21527336]
[1732143088119,0.0017118,94099.0,94098.0,0.106272]
[1732143088374,0.0017118,94099.0,94098.0,0.2675939]
[1732143088586,0.0017118,94099.0,94098.0,0.26922063]
[1732143088801,0.0017118,94099.0,94098.0,0.31792063]
[1732143089142,0.0017118,94099.0,94098.0,0.46107102]
[1732143089341,0.0017118,94099.0,94098.0,0.41332064]
[1732143089554,0.0017118,94099.0,94098.0,0.51832064]
[1732143089780,0.0017118,94099.0,94098.0,0.56193223]
[1732143090013,0.0017126,94114.0,94098.0,0.56193223]
[1732143090014,0.0017126,94114.0,94112.0,0.005]
[1732143090212,0.0017126,94114.0,94112.0,0.50357448]
[1732143090423,0.0002,94119.0,94116.0,0.211251]
[1732143090631,0.0002,94119.0,94116.0,0.32036612]
[1732143090837,0.0002,94119.0,94116.0,0.32103145]
[1732143091079,0.0002,94119.0,94116.0,0.5594999]
[1732143091295,0.0002,94119.0,94116.0,0.41622061]
[1732143091515,0.0002,94119.0,94116.0,0.32103145]
[1732143091719,0.0002,94119.0,94116.0,0.40233145]
[1732143094605,0.0002,94119.0,94116.0,0.42533145]
[1732143101662,0.0002,94139.0,94138.0,0.106227]
[1732143101891,0.0002,94139.0,94138.0,0.29106287]
[1732143102111,0.0002,94139.0,94138.0,0.37116004]
[1732143105442,0.0002,94139.0,94138.0,0.20884156]
[1732143105655,0.0002,94139.0,94138.0,0.37116004]
[1732143106332,0.0019114,94139.0,94138.0,0.37116004]
[1732143107768,0.0019114,94139.0,94138.0,0.52623557]
[1732143110145,0.0019114,94139.0,94138.0,0.54923557]
[1732143110367,0.0102,94159.0,94138.0,0.54923557]
[1732143110368,0.0102,94159.0,94152.0,0.005]
[1732143110585,0.0102,94159.0,94154.0,0.28736724]
[1732143110792,0.0102,94159.0,94154.0,0.36852648]
[1732143111002,0.0102,94159.0,94154.0,0.37113624]
[1732143111215,0.0102,94159.0,94154.0,0.289977]
[1732143113310,0.0102,94159.0,94154.0,0.3329508]
[1732143116639,0.0102,94159.0,94154.0,0.41411004]
[1732143116848,0.0102,94159.0,94154.0,0.3329508]
[1732143118244,0.0102,94159.0,94154.0,0.3379508]
[1732143118705,0.0102,94159.0,94154.0,0.54651004]
[1732143118706,0.0002,94159.0,94154.0,0.54651004]
[1732143119118,0.0002,94159.0,94154.0,0.65362516]
[1732143121595,0.0002,94159.0,94154.0,0.49941004]
[1732143124528,0.0002,94159.0,94154.0,0.54491004]
[1732143125135,0.0002,94159.0,94154.0,0.25179156]
[1732143125346,0.0002,94159.0,94154.0,0.3329508]
[1732143127748,0.005,94157.0,94154.0,0.3329508]
[1732143128156,0.005,94157.0,94154.0,0.289977]
[1732143128419,0.005,94156.0,94154.0,0.289977]
[1732143129700,0.006711,94155.0,94154.0,0.289977]
[1732143130741,0.016711,94155.0,94154.0,0.189977]
[1732143131334,0.35353312,94155.0,94154.0,0.00260976]
[1732143131710,0.015,94144.0,94143.0,0.08115924]
[1732143131910,0.24561512,94144.0,94143.0,0.08356167]
[1732143132123,0.24561512,94144.0,94143.0,0.18978267]
[1732143134186,0.35183512,94144.0,94143.0,0.00240243]
[1732143134569,0.015,94140.0,94135.0,0.106229]
[1732143134798,0.12211512,94140.0,94138.0,0.106226]
[1732143134998,0.12211512,94140.0,94139.0,0.00325793]
[1732143135243,0.22833912,94140.0,94139.0,0.00325793]
[1732143135409,0.27363912,94140.0,94139.0,0.00325793]
[1732143135616,0.35243912,94140.0,94139.0,0.0008555]
[1732143135805,0.35243912,94140.0,94139.0,0.00325793]
[1732143136011,0.35243912,94140.0,94139.0,0.0008555]
[1732143136277,0.3654399,94140.0,94139.0,0.0008555]
[1732143136483,0.89111515,94140.0,94139.0,0.0008555]
[1732143136685,0.1341,94130.0,94129.0,0.106236]
[1732143136894,0.24121512,94130.0,94129.0,0.10874655]
[1732143137303,0.24621512,94130.0,94129.0,0.10874655]
[1732143139660,0.01,94130.0,94129.0,0.10874655]
[1732143140037,0.005,94138.0,94134.0,0.106231]
[1732143140038,0.01,94135.0,94134.0,0.106231]
[1732143140264,0.11711512,94135.0,94134.0,0.2274486]
[1732143140463,0.11711512,94135.0,94134.0,0.22979521]
[1732143141236,0.01,94135.0,94134.0,0.22979521]
[1732143143153,0.01,94135.0,94134.0,0.33602621]
[1732143144119,0.015,94138.0,94137.0,0.106228]
[1732143144329,0.015,94138.0,94137.0,0.10877017]
[1732143156749,0.005,94138.0,94137.0,0.10877017]
[1732143156955,0.015,94138.0,94137.0,0.10877017]
[1732143158683,0.015,94138.0,94137.0,0.18971306]
[1732143159084,0.12211512,94138.0,94137.0,0.10877017]
[1732143159452,0.12211512,94138.0,94137.0,0.00265921]
[1732143159645,0.01,94136.0,94135.0,0.21904089]
[1732143159846,0.11711512,94136.0,94135.0,0.2217001]
[1732143160074,0.12211512,94136.0,94135.0,0.2217001]
[1732143161399,0.11211512,94136.0,94135.0,0.2217001]
[1732143161585,0.12211512,94136.0,94135.0,0.2217001]
[1732143161784,0.17121512,94136.0,94135.0,0.2217001]
[1732143162109,0.17121512,94136.0,94135.0,0.14075721]
[1732143167591,0.17121512,94136.0,94135.0,0.14161271]
[1732143175333,0.17121512,94136.0,94135.0,0.00351471]
[1732143175865,0.11711512,94136.0,94135.0,0.10974471]
[1732143176024,0.12211512,94136.0,94135.0,0.10974471]
[1732143176520,0.01,94136.0,94135.0,0.1906876]
[1732143178845,0.0117112,94136.0,94135.0,0.1906876]
[1732143181136,0.0017112,94136.0,94135.0,0.1906876]
[1732143181387,0.0117112,94136.0,94135.0,0.1906876]
[1732143181558,0.0017112,94136.0,94135.0,0.1906876]
[1732143181763,0.0117112,94136.0,94135.0,0.1906876]
[1732143182761,0.0017112,94136.0,94135.0,0.1906876]
[1732143182964,0.0117112,94136.0,94135.0,0.1906876]
[1732143185894,0.0017112,94136.0,94135.0,0.1906876]
[1732143186097,0.0117112,94136.0,94135.0,0.1906876]
[1732143189721,0.0017112,94136.0,94135.0,0.1906876]
[1732143189923,0.0117112,94136.0,94135.0,0.1906876]
[1732143198983,0.0117112,94136.0,94135.0,0.10974471]
[1732143199204,0.0117112,94136.0,94135.0,0.1906876]
[1732143199412,0.0117112,94136.0,94135.0,0.2702876]
[1732143200374,0.0117112,94136.0,94135.0,0.2703286]
[1732143203105,0.0017112,94136.0,94135.0,0.2703286]
[1732143207697,0.0017112,94136.0,94135.0,0.35127149]
[1732143207901,0.0017112,94136.0,94135.0,0.50387149]
[1732143208356,0.0017112,94136.0,94135.0,0.59927181]
[1732143209314,0.0017112,94136.0,94135.0,0.5992247]
[1732143209532,0.001711,94139.0,94138.0,0.340627]
[1732143209733,0.001711,94139.0,94138.0,0.45041009]
[1732143209940,0.001711,94139.0,94138.0,0.54576072]
[1732143210168,0.001711,94139.0,94138.0,0.59351058]
[1732143210356,0.001711,94139.0,94138.0,0.45041009]
[1732143210559,0.0102,94159.0,94154.0,0.106208]
[1732143210560,0.0002,94159.0,94154.0,0.106208]
[1732143210881,0.0002,94159.0,94154.0,0.45754835]
[1732143212599,0.0002,94159.0,94154.0,0.5010475]
[1732143215420,0.0002,94159.0,94154.0,0.60816262]
[1732143226732,0.0002,94159.0,94154.0,0.61016262]
[1732143226949,0.0002,94159.0,94154.0,0.60816262]
[1732143227857,0.0002,94159.0,94154.0,0.61016262]
[1732143228081,0.0002,94159.0,94154.0,0.60816262]
[1732143228337,0.0002,94159.0,94154.0,0.63116262]
[1732143229094,1e-06,94155.0,94154.0,0.63116262]
[1732143229685,6.803e-05,94159.0,94158.0,0.005]
[1732143229908,6.803e-05,94159.0,94158.0,0.31831912]
[1732143230156,6.803e-05,94159.0,94158.0,0.32074524]
[1732143233790,3e-08,94159.0,94158.0,0.44884524]
[1732143236184,0.00171163,94159.0,94158.0,0.44884524]
[1732143236427,0.00171163,94159.0,94158.0,0.47184524]
[1732143239494,0.00171163,94159.0,94158.0,0.42254524]
[1732143246799,0.00171163,94159.0,94158.0,0.58443102]
[1732143248207,0.00171163,94159.0,94158.0,0.50563102]
[1732143249868,0.00171163,94159.0,94158.0,0.34374524]
[1732143250072,0.00171163,94159.0,94158.0,0.23663012]
[1732143250189,0.00171163,94159.0,94158.0,0.3935159]
[1732143250399,0.05161163,94159.0,94158.0,0.28957301]
[1732143250595,0.13111163,94159.0,94158.0,0.10863012]
[1732143250834,0.14611163,94159.0,94158.0,0.10863012]
[1732143251030,0.25322675,94159.0,94158.0,0.18957301]
[1732143255185,0.25322675,94159.0,94158.0,0.00242612]
[1732143255422,0.25322675,94159.0,94157.0,0.106205]
[1732143255633,0.24361512,94158.0,94157.0,0.106205]
[1732143258228,0.24861512,94158.0,94157.0,0.106205]
[1732143258707,0.24861512,94158.0,94157.0,0.18714789]
[1732143260681,0.24861512,94158.0,94157.0,0.18800349]
[1732143266348,0.24861512,94158.0,94157.0,0.1070606]
[1732143266583,0.24861512,94158.0,94157.0,0.18800349]
[1732143267493,0.24861512,94158.0,94157.0,0.19054784]
[1732143270944,0.24861512,94158.0,94157.0,0.10960495]
[1732143271484,0.24861512,94158.0,94157.0,0.00339995]
[1732143272060,0.24861512,94158.0,94157.0,0.10960495]
[1732143274208,0.24861512,94158.0,94157.0,0.00339995]
[1732143276927,0.24861512,94158.0,94157.0,0.10960495]
[1732143277333,0.24861512,94158.0,94157.0,0.00339995]
[1732143279337,0.24861512,94158.0,94157.0,0.10960495]
[1732143289358,0.24861512,94158.0,94157.0,0.00339995]
[1732143290199,0.24861512,94158.0,94157.0,0.10960495]
[1732143291005,0.24861512,94158.0,94157.0,0.00339995]
[1732143292355,0.24861512,94158.0,94157.0,0.10960495]
[1732143296311,0.34350793,94158.0,94157.0,0.10960495]
[1732143296586,0.34367695,94158.0,94157.0,0.10960495]
[1732143297796,0.34367695,94158.0,94151.0,0.159316]
[1732143297976,0.1415,94158.0,94157.0,0.10876621]
[1732143298176,0.1415,94158.0,94157.0,0.106205]
[1732143298431,0.1415,94158.0,94157.0,0.10862486]
[1732143299221,0.1415,94158.0,94157.0,0.00241986]
[1732143299532,0.015,94156.0,94155.0,0.106207]
[1732143300140,0.015,94154.0,94153.0,0.106209]
[1732143301572,0.12211512,94154.0,94153.0,0.106209]
[1732143302236,0.12211512,94154.0,94148.0,0.159322]
[1732143302463,0.01,94141.0,94140.0,0.106224]
[1732143305564,0.015,94141.0,94140.0,0.10864718]
[1732143307303,0.015,94141.0,94140.0,0.10950278]
[1732143320703,0.12211512,94141.0,94140.0,0.10950278]
[1732143330308,0.12211512,94141.0,94140.0,0.00327878]
[1732143330512,0.22833812,94141.0,94140.0,0.00327878]
[1732143330743,0.12211512,94141.0,94140.0,0.00327878]
[1732143330947,0.12211512,94141.0,94140.0,0.0008556]
[1732143331137,0.21709715,94141.0,94140.0,0.0008556]
[1732143331299,0.21709715,94141.0,94140.0,0.00303936]
[1732143331773,0.21709734,94141.0,94140.0,0.0008556]
[1732143332400,0.21709734,94141.0,94140.0,0.00303925]
[1732143333639,0.12211512,94141.0,94140.0,0.00303925]
[1732143335240,0.22833812,94141.0,94140.0,0.0008556]
[1732143335486,0.27803812,94141.0,94140.0,0.0008556]
[1732143335660,0.17181512,94141.0,94140.0,0.0008556]
[1732143336683,0.27803812,94141.0,94140.0,0.0008556]
[1732143339225,0.27803812,94141.0,94140.0,0.0008556]
[1732143341746,0.3829875,94141.0,94140.0,0.0008556]
[1732143341942,0.31103812,94141.0,94140.0,0.0008556]
[1732143342871,0.40598959,94141.0,94140.0,0.0008556]
[1732143343071,0.31103812,94141.0,94140.0,0.0008556]
[1732143343246,0.59424453,94141.0,94140.0,0.0008556]
[1732143343681,0.46522629,94141.0,94140.0,0.0008556]
[1732143344012,0.40734396,94141.0,94140.0,0.0008556]
[1732143344219,0.75783829,94141.0,94140.0,0.0008556]
[1732143344540,0.40734396,94141.0,94140.0,0.0008556]
[1732143345240,0.75786606,94141.0,94140.0,0.0008556]
[1732143345648,0.40734396,94141.0,94140.0,0.0008556]
[1732143345821,0.9377299,94141.0,94140.0,0.0008556]
[1732143346168,0.75783113,94141.0,94140.0,0.0008556]
[1732143346368,0.75786122,94141.0,94140.0,0.0008556]
[1732143346594,0.94773811,94141.0,94140.0,0.0008556]
[1732143346824,0.93430218,94141.0,94140.0,0.0008556]
[1732143347372,0.94767296,94141.0,94140.0,0.0008556]
[1732143347597,0.94766878,94141.0,94140.0,0.0008556]
[1732143349812,0.934298,94141.0,94140.0,0.0008556]
[1732143350058,0.94767904,94141.0,94140.0,0.0008556]
[1732143350789,0.40731916,94141.0,94140.0,0.0008556]
[1732143350916,0.75770757,94141.0,94140.0,0.0008556]
[1732143351118,0.40731916,94141.0,94140.0,0.0008556]
[1732143351522,0.7577089,94141.0,94140.0,0.0008556]
[1732143352804,0.86677145,94141.0,94140.0,0.0008556]
[1732143353304,1.05661156,94141.0,94140.0,0.0008556]
[1732143353506,0.75776218,94141.0,94140.0,0.0008556]
[1732143353924,0.40737244,94141.0,94140.0,0.0008556]
[1732143354335,0.75771452,94141.0,94140.0,0.0008556]
[1732143354963,0.54973147,94141.0,94140.0,0.0008556]
[1732143355491,0.32760847,94141.0,94140.0,0.0008556]
[1732143355720,0.46994568,94141.0,94140.0,0.0008556]
[1732143356063,0.32760847,94141.0,94140.0,0.0008556]
[1732143356308,0.57616868,94141.0,94140.0,0.0008556]
[1732143356832,0.56273079,94141.0,94140.0,0.0008556]
[1732143357081,0.57620988,94141.0,94140.0,0.0008556]
[1732143360469,0.46998688,94141.0,94140.0,0.0008556]
[1732143360666,0.57620988,94141.0,94140.0,0.0008556]
[1732143361439,0.43387624,94141.0,94140.0,0.0008556]
[1732143362663,0.53391516,94141.0,94140.0,0.0008556]
[1732143364060,0.39155613,94141.0,94140.0,0.0008556]
[1732143365787,0.37803812,94141.0,94140.0,0.0008556]
[1732143366347,0.39166206,94141.0,94140.0,0.0008556]
[1732143369562,0.74213911,94141.0,94140.0,0.0008556]
[1732143372586,0.97949922,94141.0,94140.0,0.0008556]
[1732143373018,0.74213911,94141.0,94140.0,0.0008556]
[1732143373249,0.97949922,94141.0,94140.0,0.0008556]
[1732143373430,0.74213911,94141.0,94140.0,0.0008556]
[1732143373686,0.97949922,94141.0,94140.0,0.0008556]
[1732143373904,0.74213911,94141.0,94140.0,0.0008556]
[1732143376188,0.74241435,94141.0,94140.0,0.0008556]
[1732143376595,0.72851517,94141.0,94140.0,0.0008556]
[1732143377007,0.74236947,94141.0,94140.0,0.0008556]
[1732143379453,0.72851517,94141.0,94140.0,0.0008556]
[1732143379650,0.74237477,94141.0,94140.0,0.0008556]
[1732143381608,0.74274594,94141.0,94140.0,0.0008556]
[1732143386381,0.74286216,94141.0,94140.0,0.0008556]
[1732143386802,0.74201596,94141.0,94140.0,0.0008556]
[1732143389734,0.72900256,94141.0,94140.0,0.0008556]
[1732143389928,0.74185569,94141.0,94140.0,0.0008556]
[1732143390769,0.89391824,94141.0,94140.0,0.0008556]
[1732143390936,0.86495569,94141.0,94140.0,0.0008556]
[1732143391340,0.86509355,94141.0,94140.0,0.0008556]
[1732143393628,0.85509355,94141.0,94140.0,0.0008556]
[1732143393868,0.86509355,94141.0,94140.0,0.0008556]
[1732143396014,0.51399125,94141.0,94140.0,0.0008556]
[1732143396217,0.86509502,94141.0,94140.0,0.0008556]
[1732143396540,0.85224189,94141.0,94140.0,0.0008556]
[1732143397064,0.86494056,94141.0,94140.0,0.0008556]
[1732143399162,1.15028204,94141.0,94140.0,0.0008556]
[1732143399977,1.13758337,94141.0,94140.0,0.0008556]
[1732143400177,1.15020847,94141.0,94140.0,0.0008556]
[1732143400403,1.07010847,94141.0,94140.0,0.0008556]
[1732143401998,0.78476699,94141.0,94140.0,0.0008556]
[1732143402586,0.89382954,94141.0,94140.0,0.0008556]
[1732143402982,1.07010847,94141.0,94140.0,0.0008556]
[1732143403429,1.0700824,94141.0,94140.0,0.0008556]
[1732143405817,1.05748337,94141.0,94140.0,0.0008556]
[1732143407233,0.77214189,94141.0,94140.0,0.0008556]
[1732143408107,1.05748337,94141.0,94140.0,0.0008556]
[1732143408913,0.77214189,94141.0,94140.0,0.0008556]
[1732143409700,1.05748337,94141.0,94140.0,0.0008556]
[1732143410354,0.42103812,94141.0,94140.0,0.0008556]
[1732143411155,0.77211184,94141.0,94140.0,0.0008556]
[1732143411762,1.0574289,94141.0,94140.0,0.0008556]
[1732143411974,0.77211184,94141.0,94140.0,0.0008556]
[1732143412223,1.0574289,94141.0,94140.0,0.0008556]
[1732143412359,0.015,94124.0,94123.0,0.25194552]
[1732143412559,0.12211512,94124.0,94123.0,0.25415955]
[1732143412870,0.12211512,94124.0,94123.0,0.10845703]
[1732143415060,0.12211512,94124.0,94123.0,0.31079992]
[1732143415276,0.015,94125.0,94124.0,0.227642]
[1732143415482,0.09510424,94128.0,94127.0,0.106239]
[1732143415683,0.09510424,94133.0,94132.0,0.106233]
[1732143415910,0.1,94141.0,94136.0,0.08094289]
[1732143416110,0.1,94141.0,94140.0,0.106224]
[1732143416245,0.1,94141.0,94140.0,0.227624]
[1732143416644,0.1,94141.0,94140.0,0.229629]
[1732143419383,0.1,94141.0,94138.0,0.159338]
[1732143419384,0.1,94141.0,94138.0,0.12512743]
[1732143419566,0.1,94141.0,94140.0,0.10814574]
[1732143419816,0.1,94141.0,94140.0,0.106224]
[1732143420019,0.1,94141.0,94140.0,0.10814489]
[1732143422196,0.1,94141.0,94140.0,0.10900059]
[1732143422394,0.1,94141.0,94140.0,0.31964348]
[1732143424986,0.1,94141.0,94140.0,0.27304348]
[1732143426103,0.10004,94141.0,94140.0,0.27304348]
[1732143433649,0.10004,94141.0,94140.0,0.32024348]
[1732143434081,0.1017516,94141.0,94140.0,0.32024348]
[1732143434642,0.1017516,94141.0,94140.0,0.10900059]
[1732143434958,0.1067516,94141.0,94140.0,0.18994348]
[1732143435943,0.1067516,94141.0,94138.0,0.16927356]
[1732143436159,0.1067516,94141.0,94140.0,0.08273387]
[1732143436356,0.1067516,94141.0,94140.0,0.08094289]
[1732143438084,0.1067516,94141.0,94140.0,0.18895787]
[1732143439300,0.1017516,94141.0,94140.0,0.18895787]
[1732143442381,0.1067516,94141.0,94140.0,0.18895787]
[1732143442577,0.1017516,94141.0,94140.0,0.18895787]
[1732143446067,0.1067516,94141.0,94140.0,0.18895787]
[1732143446202,0.1067516,94141.0,94140.0,0.18981367]
[1732143447663,0.1017516,94141.0,94140.0,0.18981367]
[1732143449253,0.1067516,94141.0,94140.0,0.18981367]
[1732143450453,0.1017516,94141.0,94140.0,0.18981367]
[1732143450782,0.1067516,94141.0,94140.0,0.18981367]
[1732143451197,0.1017516,94141.0,94140.0,0.18981367]
[1732143454571,0.1067516,94141.0,94140.0,0.18981367]
[1732143454768,0.1017516,94141.0,94140.0,0.18981367]
[1732143455015,0.1067516,94141.0,94140.0,0.18981367]
[1732143455688,0.1017516,94141.0,94140.0,0.18981367]
[1732143471044,0.1496516,94141.0,94140.0,0.18981367]
[1732143472857,0.1546516,94141.0,94140.0,0.18981367]
[1732143476425,0.1496516,94141.0,94140.0,0.18981367]
[1732143476629,0.1017516,94141.0,94140.0,0.18981367]
[1732143479910,0.1217516,94141.0,94140.0,0.18981367]
[1732143484467,0.1217516,94141.0,94140.0,0.10887078]
[1732143487681,0.1217516,94141.0,94140.0,0.18981367]
[1732143493958,0.1217516,94141.0,94140.0,0.23511367]
[1732143494160,0.1217516,94141.0,94140.0,0.31471367]
[1732143495380,0.1217516,94141.0,94140.0,0.26941367]
[1732143498127,0.1217516,94141.0,94140.0,0.18981367]
[1732143504848,0.1217516,94141.0,94140.0,0.10887078]
[1732143505017,0.1217516,94141.0,94140.0,0.18981367]
[1732143506331,0.0155266,94141.0,94140.0,0.59835005]
[1732143506520,0.0155266,94141.0,94140.0,0.59726936]
[1732143507467,0.0155266,94141.0,94140.0,0.50185656]
[1732143508639,0.0155266,94141.0,94140.0,0.59724448]
[1732143510304,6e-07,94141.0,94140.0,0.7043596]
[1732143511441,6e-07,94141.0,94140.0,0.60897168]
[1732143512310,6e-07,94141.0,94140.0,0.7521187]
[1732143512517,6e-07,94141.0,94140.0,0.60897168]
[1732143512961,0.0008564,94141.0,94140.0,0.7521187]
[1732143513181,4e-07,94141.0,94140.0,0.7521187]
[1732143513636,4e-07,94141.0,94140.0,0.60897168]
[1732143513854,4e-07,94141.0,94140.0,0.7521187]
[1732143514524,4e-07,94141.0,94140.0,0.60897168]
[1732143514731,0.00171163,94159.0,94140.0,0.60897168]
[1732143514732,0.00171163,94159.0,94153.0,0.005]
[1732143514935,0.00171163,94159.0,94153.0,0.50199578]
[1732143515146,0.00171163,94159.0,94153.0,0.42264041]
[1732143515550,0.00171163,94159.0,94153.0,0.5035833]
[1732143515754,0.00171163,94159.0,94153.0,0.4563833]
[1732143515954,0.00171163,94159.0,94153.0,0.37544041]
[1732143516169,0.00171163,94159.0,94153.0,0.3746833]
[1732143516376,0.00171163,94159.0,94153.0,0.29374041]
[1732143516834,0.00171163,94159.0,94153.0,0.28874041]
[1732143517014,0.0503114,94154.0,94153.0,0.28874041]
[1732143519699,0.0503114,94154.0,94153.0,0.33269603]
[1732143523951,0.0017114,94154.0,94153.0,0.33269603]
[1732143529071,0.0017114,94154.0,94153.0,0.41863892]
[1732143530623,0.0017114,94154.0,94153.0,0.52575404]
[1732143536405,4e-07,94154.0,94153.0,0.52575404]
[1732143538092,4e-07,94154.0,94153.0,0.64755404]
[1732143538982,4e-07,94154.0,94153.0,0.74275223]
[1732143540599,4e-07,94154.0,94153.0,0.64755404]
[1732143540831,4e-07,94154.0,94153.0,0.74270897]
[1732143541566,4e-07,94154.0,94153.0,0.74270864]
[1732143542283,4e-07,94154.0,94153.0,0.64755404]
[1732143542507,4e-07,94154.0,94153.0,0.74270864]
[1732143543621,4e-07,94154.0,94153.0,0.64955404]
[1732143544449,4e-07,94154.0,94153.0,0.64755404]
[1732143545117,4e-07,94154.0,94153.0,0.60235404]
[1732143545331,4e-07,94154.0,94153.0,0.69752071]
[1732143545540,4e-07,94154.0,94153.0,0.60235404]
[1732143546184,4e-07,94154.0,94153.0,0.62092838]
[1732143546397,4e-07,94154.0,94153.0,0.52575404]
[1732143547372,0.0468004,94154.0,94153.0,0.35886826]
[1732143547585,0.1267004,94154.0,94153.0,0.25346454]
[1732143547790,0.1267004,94154.0,94153.0,0.23440743]
[1732143548009,0.1317004,94154.0,94153.0,0.23440743]
[1732143548218,0.1317004,94154.0,94153.0,0.1079214]
[1732143548356,0.1317004,94154.0,94153.0,0.18886429]
[1732143549179,0.1317004,94154.0,94153.0,0.1079214]
[1732143549389,0.23881552,94154.0,94153.0,0.1079214]
[1732143549617,0.24881552,94154.0,94153.0,0.0017114]
[1732143553392,0.24881552,94154.0,94153.0,0.1079214]
[1732143565694,0.24881552,94154.0,94153.0,0.0017114]
[1732143566359,0.24881552,94154.0,94153.0,0.1079214]
[1732143566726,0.24881552,94154.0,94153.0,0.0017114]
[1732143566927,0.35502352,94154.0,94153.0,0.0017114]
[1732143568630,0.24881552,94154.0,94153.0,0.0017114]
[1732143570466,0.35502352,94154.0,94153.0,0.0017114]
[1732143571048,0.24881552,94154.0,94153.0,0.0017114]
[1732143571716,0.35502352,94154.0,94153.0,0.0017114]
[1732143571924,0.24881552,94154.0,94153.0,0.0017114]
[1732143574556,0.01,94143.0,94142.0,0.159333]
[1732143574764,0.1388,94143.0,94142.0,0.159333]
[1732143575441,0.1388,94143.0,94142.0,0.265555]
[1732143581863,0.1438,94143.0,94142.0,0.265555]
[1732143584058,0.1438,94143.0,94142.0,0.2664107]
[1732143584253,0.1438,94143.0,94142.0,0.1070777]
[1732143584456,0.1438,94143.0,94142.0,0.0008557]
[1732143585342,0.1438,94143.0,94142.0,0.1070777]
[1732143585547,0.1438,94143.0,94142.0,0.0008557]
[1732143585747,0.1438,94143.0,94142.0,0.1070777]
[1732143587251,0.1438,94143.0,94142.0,0.0008557]
[1732143587449,0.1438,94143.0,94142.0,0.1070777]
[1732143588869,0.1438,94143.0,94142.0,0.0008557]
[1732143589295,0.1438,94143.0,94142.0,0.1070777]
[1732143593078,0.14324419,94143.0,94142.0,0.1070777]
[1732143595556,0.14324419,94143.0,94142.0,0.0008557]
[1732143595998,0.14495579,94143.0,94142.0,0.0008557]
[1732143597150,0.14495579,94143.0,94142.0,0.1070777]
[1732143600608,0.14495579,94143.0,94142.0,0.0008557]
[1732143601658,0.14495579,94143.0,94142.0,0.1070777]
[1732143601881,0.14495579,94143.0,94142.0,0.0008557]
[1732143606631,0.42415013,94143.0,94142.0,0.0008557]
[1732143606839,0.77479493,94143.0,94142.0,0.0008557]
[1732143607041,0.90889353,94143.0,94142.0,0.0008557]
[1732143607228,0.71893871,94143.0,94142.0,0.0008557]
[1732143607800,0.772329,94143.0,94142.0,0.0008557]
[1732143609620,1.00961747,94143.0,94142.0,0.0008557]
[1732143611230,1.03261747,94143.0,94142.0,0.0008557]
[1732143611425,0.90439155,94143.0,94142.0,0.0008557]
[1732143612055,0.90403064,94143.0,94142.0,0.0008557]
[1732143612257,1.14124721,94143.0,94142.0,0.0008557]
[1732143612485,0.90403064,94143.0,94142.0,0.0008557]
[1732143612635,0.90603064,94143.0,94142.0,0.0008557]
[1732143612842,1.00603064,94143.0,94142.0,0.0008557]
[1732143613256,1.00603064,94143.0,94140.0,0.00013748]
[1732143613257,0.141223,94141.0,94140.0,0.00013748]
[1732143613474,0.95896577,94141.0,94140.0,0.00013748]
[1732143614501,1.24333655,94141.0,94140.0,0.00013748]
[1732143615153,1.25233655,94141.0,94140.0,0.00013748]
[1732143615530,0.96796577,94141.0,94140.0,0.00013748]
[1732143616026,0.97696577,94141.0,94140.0,0.00013748]
[1732143616842,0.98947485,94141.0,94140.0,0.00013748]
[1732143617088,2.48947485,94141.0,94140.0,0.00013748]
[1732143617526,2.51770298,94141.0,94140.0,0.00013748]
[1732143618972,2.40864043,94141.0,94140.0,0.00013748]
[1732143619813,2.39613135,94141.0,94140.0,0.00013748]
[1732143620572,0.291546,94121.0,94114.0,0.0008557]
[1732143620777,0.39866112,94121.0,94114.0,0.0008557]
[1732143622462,0.41666112,94121.0,94114.0,0.0008557]
[1732143622781,0.4870976,94121.0,94114.0,0.0008557]
[1732143623723,0.40766112,94121.0,94114.0,0.0008557]
[1732143624094,0.41566112,94121.0,94114.0,0.0008557]
[1732143624508,0.39866112,94121.0,94114.0,0.0008557]
[1732143624920,0.40266112,94121.0,94114.0,0.0008557]
[1732143625125,0.41066112,94121.0,94114.0,0.0008557]
[1732143625442,0.40666112,94121.0,94114.0,0.0008557]
[1732143626181,0.44980515,94121.0,94114.0,0.0008557]
[1732143627084,0.45380515,94121.0,94114.0,0.0008557]
[1732143628117,0.54188307,94121.0,94114.0,0.0008557]
[1732143628322,0.51888307,94121.0,94114.0,0.0008557]
[1732143628744,0.43080515,94121.0,94114.0,0.0008557]
[1732143633020,0.44580515,94121.0,94120.0,0.0008557]
[1732143633220,0.44180515,94121.0,94120.0,0.0008557]
[1732143633467,0.45980515,94121.0,94120.0,0.0008557]
[1732143633867,0.14111512,94121.0,94120.0,0.0008557]
[1732143634084,0.024,94121.0,94120.0,0.1071027]
[1732143634291,0.029,94121.0,94120.0,0.18804559]